fUST/lending_fUST_20241116
["ID","MTS","AMOUNT","RATE_DAILY","PERIOD"]
[342266357,1731686408155,348.91,0.00010965,2]
[342266358,1731686417373,348.91,0.00010965,2]
[342266359,1731686425219,348.91,0.00010965,2]
[342266360,1731686434455,729.42,0.00010959,2]
[342266361,1731686434770,348.91,0.00010965,2]
[342266362,1731686442628,348.91,0.00010965,2]
[342266363,1731686450769,348.91,0.00010965,2]
[342266364,1731686459749,348.91,0.00010965,2]
[342266365,1731686469487,348.91,0.00010965,2]
[342266366,1731686477300,348.91,0.00010965,2]
[342266367,1731686485873,348.91,0.00010965,2]
[342266368,1731686493810,348.91,0.00010965,2]
[342266369,1731686501931,348.91,0.00010965,2]
[342266370,1731686511406,348.91,0.00010965,2]
[342266372,1731686520789,348.91,0.00010965,2]
[342266373,1731686529517,348.91,0.00010965,2]
[342266375,1731686537600,348.91,0.00010965,2]
[342266376,1731686546101,348.91,0.00010965,2]
[342266377,1731686554480,348.91,0.00010965,2]
[342266378,1731686562476,348.91,0.00010965,2]
[342266386,1731686571122,348.91,0.00010965,2]
[342266623,1731686579202,348.91,0.00010965,2]
[342266631,1731686586982,348.91,0.00010965,2]
[342266632,1731686595075,308.04427061,0.00010965,2]
[342266634,1731686603488,348.91,0.00010965,2]
[342266638,1731686618959,348.91,0.00010965,2]
[342266639,1731686634938,348.91,0.00010965,2]
[342266640,1731686650203,348.91,0.00010965,2]
[342266641,1731686665868,348.91,0.00010965,2]
[342266642,1731686681651,348.91,0.00010965,2]
[342266643,1731686697437,348.91,0.00010965,2]
[342266644,1731686713988,348.91,0.00010965,2]
[342266645,1731686729751,348.91,0.00010965,2]
[342266646,1731686745541,348.91,0.00010965,2]
[342266647,1731686762283,348.91,0.00010965,2]
[342266648,1731686778284,348.91,0.00010965,2]
[342266650,1731686793924,348.91,0.00010965,2]
[342266651,1731686809813,348.91,0.00010965,2]
[342266652,1731686825540,348.91,0.00010965,2]
[342266668,1731686841256,348.91,0.00010965,2]
[342266669,1731686856438,348.91,0.00010965,2]
[342266670,1731686872133,348.91,0.00010965,2]
[342266671,1731686887749,348.91,0.00010965,2]
[342266672,1731686903584,348.91,0.00010965,2]
[342266673,1731686918776,348.91,0.00010965,2]
[342266674,1731686934635,348.91,0.00010965,2]
[342266675,1731686950025,348.91,0.00010965,2]
[342266676,1731686965267,348.91,0.00010965,2]
[342266677,1731686981294,348.91,0.00010965,2]
[342266696,1731686998097,348.91,0.00010965,2]
[342266697,1731687013602,348.91,0.00010965,2]
[342266699,1731687028812,348.91,0.00010965,2]
[342266748,1731687032026,-348.91,0.00011076,2]
[342266749,1731687032036,-171.10530915,0.00013598,2]
[342266750,1731687032047,-340.74781905,0.00013598,2]
[342266751,1731687032057,-154.61858218,0.00013697,2]
[342266767,1731687038039,-145.38141782,0.00013697,2]
[342266768,1731687038048,-300.0,0.00013697,2]
[342266769,1731687038058,-760.57838374,0.00013698,2]
[342266770,1731687038068,-151.0,0.00013698,2]
[342266771,1731687038077,-592.97448915,0.00013698,2]
[342266772,1731687038087,-503.14002875,0.00013698,2]
[342266773,1731687038096,-500.0,0.00013698,2]
[342266774,1731687038106,-500.0,0.00013698,2]
[342266775,1731687038116,-500.0,0.00013698,2]
[342266776,1731687038125,-500.0,0.00013698,2]
[342266777,1731687038136,-383.69346011,0.00013698,2]
[342266778,1731687038145,-500.0,0.00013698,2]
[342266779,1731687038154,-500.0,0.00013698,2]
[342266780,1731687038164,-500.0,0.00013698,2]
[342266781,1731687038173,-500.0,0.00013698,2]
[342266782,1731687038183,-373.46040073,0.00013698,2]
[342266783,1731687038195,-519.73238018,0.00013698,2]
[342266784,1731687038205,-233.51676398,0.00013698,2]
[342266785,1731687038215,-176.289098,0.00013698,2]
[342266786,1731687038224,-176.289098,0.00013698,2]
[342266787,1731687038233,-500.0,0.00013698,2]
[342266788,1731687038243,-500.0,0.00013698,2]
[342266789,1731687038253,-500.0,0.00013698,2]
[342266790,1731687038263,-500.0,0.00013698,2]
[342266791,1731687038272,-500.0,0.00013698,2]
[342266792,1731687038282,-500.0,0.00013698,2]
[342266793,1731687038291,-532.18,0.00013698,2]
[342266794,1731687038301,-500.0,0.00013698,2]
[342266795,1731687038310,-500.0,0.00013698,2]
[342266796,1731687038320,-500.0,0.00013698,2]
[342266797,1731687038329,-200.93467636,0.00013698,2]
[342266836,1731687041005,-299.06532364,0.00013698,2]
[342266837,1731687041015,-500.0,0.00013698,2]
[342266838,1731687041024,-500.0,0.00013698,2]
[342266839,1731687041034,-500.0,0.00013698,2]
[342266840,1731687041043,-500.0,0.00013698,2]
[342266841,1731687041052,-500.0,0.00013698,2]
[342266842,1731687041062,-500.0,0.00013698,2]
[342266843,1731687041071,-500.0,0.00013698,2]
[342266844,1731687041080,-500.0,0.00013698,2]
[342266845,1731687041090,-565.95775313,0.00013698,2]
[342266846,1731687041099,-500.0,0.00013698,2]
[342266847,1731687041109,-500.0,0.00013698,2]
[342266848,1731687041118,-500.0,0.00013698,2]
[342266849,1731687041128,-500.0,0.00013698,2]
[342266850,1731687041139,-500.0,0.00013698,2]
[342266851,1731687041149,-500.0,0.00013698,2]
[342266852,1731687041159,-500.0,0.00013698,2]
[342266853,1731687041168,-164.83983963,0.00013698,2]
[342266854,1731687041177,-500.0,0.00013698,2]
[342266855,1731687041187,-500.0,0.00013698,2]
[342266856,1731687041197,-500.0,0.00013698,2]
[342266857,1731687041207,-500.0,0.00013698,2]
[342266858,1731687041216,-500.0,0.00013698,2]
[342266859,1731687041226,-500.0,0.00013698,2]
[342266860,1731687041236,-500.0,0.00013698,2]
[342266861,1731687041245,-500.0,0.00013698,2]
[342266862,1731687041254,-580.56586075,0.00013698,2]
[342266863,1731687041263,-543.75,0.00013698,2]
[342266864,1731687041272,-574.01,0.00013698,2]
[342266865,1731687041282,-500.0,0.00013698,2]
[342266866,1731687041291,-500.0,0.00013698,2]
[342266867,1731687041301,-560.64,0.00013698,2]
[342266868,1731687041310,-500.0,0.00013698,2]
[342266869,1731687041320,-500.0,0.00013698,2]
[342266870,1731687041329,-500.0,0.00013698,2]
[342266871,1731687041338,-500.0,0.00013698,2]
[342266872,1731687041347,-513.26,0.00013698,2]
[342266873,1731687041358,-500.0,0.00013698,2]
[342266874,1731687041367,-553.74,0.00013698,2]
[342266875,1731687041376,-500.0,0.00013698,2]
[342266876,1731687041388,-501.32163845,0.00013698,2]
[342266877,1731687041398,-500.0,0.00013698,2]
[342266878,1731687041407,-500.0,0.00013698,2]
[342266879,1731687041416,-549.68,0.00013698,2]
[342266880,1731687041425,-515.42676376,0.00013698,2]
[342266881,1731687041434,-646.29104978,0.00013698,2]
[342266882,1731687041443,-528.3,0.00013698,2]
[342266883,1731687041452,-516.03378404,0.00013698,2]
[342266884,1731687041461,-428.92864675,0.00013698,2]
[342266885,1731687041471,-594.55,0.00013698,2]
[342266886,1731687041481,-500.0,0.00013698,2]
[342266887,1731687041491,-626.688523,0.00013698,2]
[342266888,1731687041500,-500.0,0.00013698,2]
[342266889,1731687041509,-500.0,0.00013698,2]
[342266890,1731687041519,-500.0,0.00013698,2]
[342266891,1731687041528,-500.0,0.00013698,2]
[342266892,1731687041538,-500.0,0.00013698,2]
[342266893,1731687041547,-500.0,0.00013698,2]
[342266894,1731687041556,-500.0,0.00013698,2]
[342266895,1731687041566,-500.0,0.00013698,2]
[342266896,1731687041575,-453.72808793,0.00013698,2]
[342266897,1731687041585,-500.0,0.00013698,2]
[342266898,1731687041594,-500.0,0.00013698,2]
[342266899,1731687041603,-500.0,0.00013698,2]
[342266900,1731687041612,-500.0,0.00013698,2]
[342266901,1731687041621,-500.0,0.00013698,2]
[342266902,1731687041631,-500.0,0.00013698,2]
[342266903,1731687041643,-500.0,0.00013698,2]
[342266904,1731687041652,-500.0,0.00013698,2]
[342266905,1731687041662,-503.42,0.00013698,2]
[342266906,1731687041675,-2336.0,0.00013698,2]
[342266907,1731687041684,-500.0,0.00013698,2]
[342266908,1731687041694,-308.45032593,0.00013698,2]
[342266909,1731687041704,-2511.61,0.00013698,2]
[342266910,1731687041713,-500.0,0.00013698,2]
[342266911,1731687041723,-500.0,0.00013698,2]
[342266912,1731687041733,-500.0,0.00013698,2]
[342266913,1731687041745,-265.94741361,0.00013698,2]
[342266914,1731687041754,-500.0,0.00013698,2]
[342266915,1731687041763,-551.83,0.00013698,2]
[342266916,1731687041773,-500.0,0.00013698,2]
[342266917,1731687041783,-500.0,0.00013698,2]
[342266918,1731687041793,-500.0,0.00013698,2]
[342266919,1731687041803,-500.0,0.00013698,2]
[342266920,1731687041812,-500.0,0.00013698,2]
[342266921,1731687041822,-587.39926092,0.00013698,2]
[342266922,1731687041832,-2156.2,0.00013698,2]
[342266923,1731687041841,-507.87,0.00013698,2]
[342266924,1731687041850,-500.0,0.00013698,2]
[342266925,1731687041860,-500.0,0.00013698,2]
[342266926,1731687041869,-500.0,0.00013698,2]
[342266927,1731687041878,-500.0,0.00013698,2]
[342266928,1731687041889,-500.0,0.00013698,2]
[342266929,1731687041899,-500.0,0.00013698,2]
[342266930,1731687041908,-500.0,0.00013698,2]
[342266931,1731687042044,-407.55586318,0.00013698,2]
[342266932,1731687042054,-500.0,0.00013698,2]
[342266933,1731687042063,-500.0,0.00013698,2]
[342266934,1731687042072,-500.0,0.00013698,2]
[342266935,1731687042081,-500.0,0.00013698,2]
[342266936,1731687042090,-553.54,0.00013698,2]
[342266937,1731687042100,-500.0,0.00013698,2]
[342266938,1731687042110,-500.0,0.00013698,2]
[342266939,1731687042119,-500.0,0.00013698,2]
[342266940,1731687042128,-500.0,0.00013698,2]
[342266941,1731687042141,-500.0,0.00013698,2]
[342266942,1731687042150,-500.0,0.00013698,2]
[342266943,1731687042160,-500.0,0.00013698,2]
[342266944,1731687042169,-500.0,0.00013698,2]
[342266945,1731687042179,-500.0,0.00013698,2]
[342266946,1731687042188,-500.0,0.00013698,2]
[342266947,1731687042197,-648.26,0.00013698,2]
[342266948,1731687042206,-500.0,0.00013698,2]
[342266949,1731687042215,-500.0,0.00013698,2]
[342266950,1731687042224,-218.39941529,0.00013698,2]
[342266951,1731687042233,-502.08596607,0.00013698,2]
[342266952,1731687042242,-500.0,0.00013698,2]
[342266953,1731687042252,-500.0,0.00013698,2]
[342266954,1731687042261,-513.10789003,0.00013698,2]
[342266955,1731687042270,-151.65483361,0.00013698,2]
[342266956,1731687042280,-500.0,0.00013698,2]
[342266957,1731687042289,-620.32,0.00013698,2]
[342266958,1731687042298,-500.0,0.00013698,2]
[342266959,1731687042307,-500.0,0.00013698,2]
[342266960,1731687042316,-500.0,0.00013698,2]
[342266961,1731687042325,-500.0,0.00013698,2]
[342266962,1731687042334,-500.0,0.00013698,2]
[342266963,1731687042344,-500.0,0.00013698,2]
[342266964,1731687042353,-500.0,0.00013698,2]
[342266965,1731687042362,-500.0,0.00013698,2]
[342266966,1731687042371,-500.0,0.00013698,2]
[342266967,1731687042381,-500.0,0.00013698,2]
[342266968,1731687042394,-500.0,0.00013698,2]
[342266969,1731687042403,-500.6559516,0.00013698,2]
[342266970,1731687042412,-500.0,0.00013698,2]
[342266971,1731687042421,-500.0,0.00013698,2]
[342266972,1731687042431,-506.32971171,0.00013698,2]
[342266973,1731687042440,-500.0,0.00013698,2]
[342266974,1731687042449,-500.0,0.00013698,2]
[342266975,1731687042459,-358.32028817,0.00013698,2]
[342266976,1731687042468,-500.0,0.00013698,2]
[342266977,1731687042476,-507.464558,0.00013698,2]
[342266978,1731687042486,-614.37,0.00013698,2]
[342266979,1731687042495,-500.0,0.00013698,2]
[342266980,1731687042505,-500.0,0.00013698,2]
[342266981,1731687042514,-500.0,0.00013698,2]
[342266982,1731687042525,-500.0,0.00013698,2]
[342266983,1731687042534,-500.0,0.00013698,2]
[342266984,1731687042543,-500.0,0.00013698,2]
[342266985,1731687042553,-500.0,0.00013698,2]
[342266986,1731687042562,-500.0,0.00013698,2]
[342266987,1731687042572,-500.0,0.00013698,2]
[342266988,1731687042581,-511.94,0.00013698,2]
[342266989,1731687042590,-500.0,0.00013698,2]
[342266992,1731687042600,-1267.19,0.00013698,2]
[342266995,1731687042609,-500.0,0.00013698,2]
[342266998,1731687042619,-500.0,0.00013698,2]
[342267000,1731687042627,-500.0,0.00013698,2]
[342267002,1731687042641,-500.0,0.00013698,2]
[342267004,1731687042650,-500.0,0.00013698,2]
[342267006,1731687042664,-511.91,0.00013698,2]
[342267008,1731687042674,-500.0,0.00013698,2]
[342267009,1731687042683,-642.12367233,0.00013698,2]
[342267010,1731687042692,-4724.83,0.00013698,2]
[342267011,1731687042703,-500.0,0.00013698,2]
[342267012,1731687042712,-500.0,0.00013698,2]
[342267013,1731687042722,-500.0,0.00013698,2]
[342267014,1731687042731,-500.0,0.00013698,2]
[342267015,1731687042743,-3328.97,0.00013698,2]
[342267016,1731687042752,-500.0,0.00013698,2]
[342267017,1731687042761,-500.0,0.00013698,2]
[342267018,1731687042771,-388.41418632,0.00013698,2]
[342267019,1731687042780,-2316.91,0.00013698,2]
[342267020,1731687042790,-500.0,0.00013698,2]
[342267021,1731687042799,-500.0,0.00013698,2]
[342267022,1731687042809,-802.73,0.00013698,2]
[342267023,1731687042818,-635.97,0.00013698,2]
[342267024,1731687042828,-500.0,0.00013698,2]
[342267025,1731687042837,-500.0,0.00013698,2]
[342267026,1731687042847,-311.04989647,0.00013698,2]
[342267027,1731687042856,-500.0,0.00013698,2]
[342267028,1731687042865,-251.61808048,0.00013698,2]
[342267029,1731687042875,-500.0,0.00013698,2]
[342267030,1731687042885,-361.01389574,0.00013698,2]
[342267031,1731687042898,-292.85276414,0.00013698,2]
[342267032,1731687042908,-280.81095812,0.00013698,2]
[342267034,1731687042917,-260.99507186,0.00013698,2]
[342267035,1731687042927,-500.0,0.00013698,2]
[342267036,1731687042936,-500.0,0.00013698,2]
[342267037,1731687042945,-500.0,0.00013698,2]
[342267038,1731687042955,-500.0,0.00013698,2]
[342267039,1731687042964,-936.12,0.00013698,2]
[342267040,1731687042973,-288.82090407,0.00013698,2]
[342267041,1731687042982,-500.0,0.00013698,2]
[342267042,1731687042992,-500.0,0.00013698,2]
[342267043,1731687043002,-500.0,0.00013698,2]
[342267044,1731687043011,-500.0,0.00013698,2]
[342267045,1731687043020,-500.0,0.00013698,2]
[342267046,1731687043030,-500.0,0.00013698,2]
[342267047,1731687043040,-500.0,0.00013698,2]
[342267048,1731687043049,-500.0,0.00013698,2]
[342267049,1731687043059,-3725.15,0.00013698,2]
[342267050,1731687043068,-500.0,0.00013698,2]
[342267052,1731687043077,-500.0,0.00013698,2]
[342267054,1731687043087,-27232.6,0.00013698,2]
[342267055,1731687043097,-559.6708629,0.00013698,2]
[342267057,1731687043106,-500.0,0.00013698,2]
[342267058,1731687043115,-500.0,0.00013698,2]
[342267059,1731687043125,-2661.49,0.00013698,2]
[342267060,1731687043135,-500.0,0.00013698,2]
[342267061,1731687043147,-601.10976219,0.00013698,2]
[342267062,1731687043156,-565.11,0.00013698,2]
[342267063,1731687043166,-500.0,0.00013698,2]
[342267064,1731687043176,-500.0,0.00013698,2]
[342267065,1731687043185,-504.14361053,0.00013698,2]
[342267066,1731687043195,-500.0,0.00013698,2]
[342267067,1731687043204,-500.0,0.00013698,2]
[342267068,1731687043213,-610.07,0.00013698,2]
[342267069,1731687043222,-18339.25,0.00013698,2]
[342267070,1731687043232,-500.0,0.00013698,2]
[342267071,1731687043241,-500.0,0.00013698,2]
[342267072,1731687043250,-500.0,0.00013698,2]
[342267073,1731687043259,-500.0,0.00013698,2]
[342267074,1731687043269,-500.0,0.00013698,2]
[342267075,1731687043278,-419.19962049,0.00013698,2]
[342267076,1731687043287,-500.0,0.00013698,2]
[342267077,1731687043296,-500.0,0.00013698,2]
[342267078,1731687043305,-500.0,0.00013698,2]
[342267079,1731687043315,-500.0,0.00013698,2]
[342267080,1731687043326,-1178.97,0.00013698,2]
[342267081,1731687043336,-554.81,0.00013698,2]
[342267082,1731687043345,-500.0,0.00013698,2]
[342267083,1731687043355,-3298.07,0.00013698,2]
[342267084,1731687043364,-500.0,0.00013698,2]
[342267085,1731687043376,-2346.97,0.00013698,2]
[342267086,1731687043386,-1964.52,0.00013698,2]
[342267087,1731687043400,-500.0,0.00013698,2]
[342267088,1731687043411,-500.0,0.00013698,2]
[342267089,1731687043422,-500.0,0.00013698,2]
[342267090,1731687043433,-500.0,0.00013698,2]
[342267091,1731687043443,-500.0,0.00013698,2]
[342267092,1731687043453,-500.0,0.00013698,2]
[342267093,1731687043463,-5221.96,0.00013698,2]
[342267094,1731687043473,-500.0,0.00013698,2]
[342267095,1731687043484,-4803.15,0.00013698,2]
[342267096,1731687043494,-500.0,0.00013698,2]
[342267097,1731687043503,-2743.12,0.00013698,2]
[342267098,1731687043512,-500.0,0.00013698,2]
[342267099,1731687043522,-218.95969101,0.00013698,2]
[342267100,1731687043532,-500.0,0.00013698,2]
[342267101,1731687043543,-604.28,0.00013698,2]
[342267102,1731687043554,-500.0,0.00013698,2]
[342267103,1731687043565,-500.0,0.00013698,2]
[342267104,1731687043575,-500.0,0.00013698,2]
[342267105,1731687043585,-299.471363,0.00013699,2]
[342267106,1731687043595,-276.350473,0.00013699,2]
[342267107,1731687043607,-500.0,0.00013699,2]
[342267108,1731687043617,-500.0,0.00013699,2]
[342267109,1731687043627,-500.0,0.00013699,2]
[342267110,1731687043640,-500.0,0.00013699,2]
[342267111,1731687043650,-500.0,0.00013699,2]
[342267112,1731687043662,-500.0,0.00013699,2]
[342267113,1731687043676,-500.0,0.00013699,2]
[342267114,1731687043686,-500.0,0.00013699,2]
[342267115,1731687043696,-500.0,0.00013699,2]
[342267116,1731687043706,-500.0,0.00013699,2]
[342267117,1731687043716,-500.0,0.00013699,2]
[342267118,1731687043725,-545.07182377,0.00013699,2]
[342267119,1731687043735,-500.0,0.00013699,2]
[342267120,1731687043747,-151.0,0.00013699,2]
[342267121,1731687043756,-171.10530915,0.00013872,2]
[342267122,1731687043766,-151.0,0.00013972,2]
[342267123,1731687043775,-151.0,0.00013972,2]
[342267124,1731687043784,-151.0,0.00013972,2]
[342267125,1731687043793,-151.0,0.00013972,2]
[342267126,1731687043802,-151.0,0.00013972,2]
[342267127,1731687043812,-151.0,0.00013972,2]
[342267128,1731687043821,-151.0,0.00013972,2]
[342267129,1731687043830,-151.0,0.00013972,2]
[342267130,1731687043839,-151.0,0.00013972,2]
[342267131,1731687043848,-151.0,0.00013972,2]
[342267132,1731687043857,-151.0,0.00013972,2]
[342267133,1731687043866,-183.755388,0.00013972,2]
[342267134,1731687043876,-176.289098,0.00013972,2]
[342267135,1731687043885,-176.289098,0.00013972,2]
[342267136,1731687043900,-176.289098,0.00013972,2]
[342267137,1731687043909,-176.289098,0.00013972,2]
[342267138,1731687043918,-176.289098,0.00013972,2]
[342267139,1731687043927,-176.289098,0.00013972,2]
[342267140,1731687043937,-500.0,0.00013972,2]
[342267141,1731687043947,-151.0,0.00013972,2]
[342267142,1731687043956,-160.583,0.00013972,2]
[342267143,1731687043965,-532.18,0.00013972,2]
[342267144,1731687043975,-500.0,0.00013972,2]
[342267145,1731687043984,-500.0,0.00013972,2]
[342267146,1731687043994,-151.0,0.00013972,2]
[342267147,1731687044003,-500.0,0.00013972,2]
[342267148,1731687044013,-500.0,0.00013972,2]
[342267149,1731687044022,-590.7,0.00013972,2]
[342267150,1731687044032,-500.0,0.00013972,2]
[342267151,1731687044042,-553.74,0.00013972,2]
[342267152,1731687044051,-151.0,0.00013972,2]
[342267153,1731687044060,-151.0,0.00013972,2]
[342267154,1731687044070,-151.0,0.00013972,2]
[342267155,1731687044079,-151.0,0.00013972,2]
[342267156,1731687044089,-151.0,0.00013972,2]
[342267157,1731687044100,-500.0,0.00013972,2]
[342267158,1731687044109,-151.0,0.00013972,2]
[342267159,1731687044119,-151.0,0.00013972,2]
[342267160,1731687044128,-500.0,0.00013972,2]
[342267161,1731687044143,-175.80696959,0.00013972,2]
[342267162,1731687044153,-434.12,0.00013972,2]
[342267163,1731687044163,-298.92,0.00013972,2]
[342267164,1731687044172,-503.42,0.00013972,2]
[342267165,1731687044181,-2336.0,0.00013972,2]
[342267166,1731687044191,-2511.61,0.00013972,2]
[342267167,1731687044200,-278.99303041,0.00013972,2]
[342267168,1731687044210,-151.0,0.00013972,2]
[342267169,1731687044220,-151.0,0.00013972,2]
[342267170,1731687044230,-2156.2,0.00013972,2]
[342267171,1731687044239,-500.0,0.00013972,2]
[342267172,1731687044248,-451.781197,0.00013972,2]
[342267173,1731687044258,-451.781197,0.00013972,2]
[342267174,1731687044267,-451.781197,0.00013972,2]
[342267175,1731687044277,-451.781197,0.00013972,2]
[342267176,1731687044286,-151.0,0.00013972,2]
[342267177,1731687044295,-151.0,0.00013972,2]
[342267178,1731687044305,-177.73,0.00013972,2]
[342267179,1731687044315,-500.0,0.00013972,2]
[342267180,1731687044324,-500.0,0.00013972,2]
[342267181,1731687044334,-500.0,0.00013972,2]
[342267182,1731687044343,-500.0,0.00013972,2]
[342267183,1731687044353,-151.0,0.00013972,2]
[342267184,1731687044362,-503.85,0.00013972,2]
[342267185,1731687044372,-500.0,0.00013972,2]
[342267186,1731687044381,-151.0,0.00013972,2]
[342267187,1731687044394,-151.0,0.00013972,2]
[342267188,1731687044403,-510.29,0.00013972,2]
[342267189,1731687044412,-151.0,0.00013972,2]
[342267190,1731687044422,-151.0,0.00013972,2]
[342267191,1731687044431,-614.37,0.00013972,2]
[342267192,1731687044441,-151.0,0.00013972,2]
[342267193,1731687044450,-500.0,0.00013972,2]
[342267194,1731687044460,-151.0,0.00013972,2]
[342267195,1731687044469,-151.0,0.00013972,2]
[342267196,1731687044479,-420.0,0.00013972,2]
[342267197,1731687044489,-500.0,0.00013972,2]
[342267198,1731687044498,-500.0,0.00013972,2]
[342267199,1731687044508,-1267.19,0.00013972,2]
[342267200,1731687044518,-500.0,0.00013972,2]
[342267201,1731687044527,-500.0,0.00013972,2]
[342267202,1731687044536,-500.0,0.00013972,2]
[342267203,1731687044546,-4724.83,0.00013972,2]
[342267204,1731687044555,-500.0,0.00013972,2]
[342267205,1731687044565,-1498.316867,0.00013972,2]
[342267206,1731687044574,-1498.316867,0.00013972,2]
[342267207,1731687044583,-500.0,0.00013972,2]
[342267208,1731687044592,-1498.316867,0.00013972,2]
[342267209,1731687044601,-1498.316867,0.00013972,2]
[342267210,1731687044610,-3328.97,0.00013972,2]
[342267211,1731687044620,-151.0,0.00013972,2]
[342267212,1731687044629,-151.0,0.00013972,2]
[342267213,1731687044638,-2316.91,0.00013972,2]
[342267214,1731687044651,-500.0,0.00013972,2]
[342267215,1731687044665,-500.0,0.00013972,2]
[342267216,1731687044674,-802.73,0.00013972,2]
[342267217,1731687044683,-500.0,0.00013972,2]
[342267218,1731687044692,-500.0,0.00013972,2]
[342267219,1731687044703,-151.0,0.00013972,2]
[342267220,1731687044712,-151.0,0.00013972,2]
[342267221,1731687044721,-500.0,0.00013972,2]
[342267222,1731687044730,-936.12,0.00013972,2]
[342267223,1731687044741,-3725.15,0.00013972,2]
[342267224,1731687044751,-27232.6,0.00013972,2]
[342267225,1731687044760,-156.98,0.00013972,2]
[342267226,1731687044769,-2661.49,0.00013972,2]
[342267227,1731687044779,-151.0,0.00013972,2]
[342267228,1731687044788,-151.0,0.00013972,2]
[342267229,1731687044797,-610.07,0.00013972,2]
[342267230,1731687044807,-18339.25,0.00013972,2]
[342267231,1731687044816,-358.68,0.00013972,2]
[342267232,1731687044825,-572.88,0.00013972,2]
[342267233,1731687044835,-314.25,0.00013972,2]
[342267234,1731687044844,-500.0,0.00013972,2]
[342267235,1731687044854,-500.0,0.00013972,2]
[342267236,1731687044864,-1178.97,0.00013972,2]
[342267237,1731687044873,-3298.07,0.00013972,2]
[342267238,1731687044884,-2346.97,0.00013972,2]
[342267239,1731687044896,-1964.52,0.00013972,2]
[342267240,1731687044905,-202.4,0.00013972,2]
[342267241,1731687044914,-636.73743965,0.00013972,2]
[342267242,1731687044924,-5221.96,0.00013972,2]
[342267243,1731687044933,-233.01,0.00013972,2]
[342267244,1731687044943,-4803.15,0.00013972,2]
[342267245,1731687044954,-500.0,0.00013972,2]
[342267246,1731687044964,-2743.12,0.00013972,2]
[342267247,1731687044973,-604.28,0.00013972,2]
[342267248,1731687044982,-400.0,0.00013973,2]
[342267249,1731687044992,-176.289098,0.00013973,2]
[342267250,1731687045001,-176.289098,0.00013973,2]
[342267251,1731687045011,-634.72,0.00013997,2]
[342267252,1731687045020,-2387.0,0.00013997,2]
[342267253,1731687045029,-1113.0,0.00013997,2]
[342267254,1731687045039,-151.0,0.00014146,2]
[342267255,1731687045048,-2988.63643464,0.00014146,2]
[342267256,1731687045057,-10494.69956213,0.00014241,2]
[342267257,1731687045066,-849.145099,0.00014246,2]
[342267258,1731687045076,-849.145099,0.00014246,2]
[342267259,1731687045086,-849.145099,0.00014246,2]
[342267260,1731687045095,-849.145099,0.00014246,2]
[342267261,1731687045104,-151.0,0.00014246,2]
[342267262,1731687045114,-151.0,0.00014246,2]
[342267263,1731687045123,-161.79856981,0.00014246,2]